[Event "Early-Titled-Tuesday-Blitz-April-16-2024"]
[Site "Chess.com"]
[Date "2024.04.16"]
[Round "9"]
[White "WilsonPalencia21"]
[Black "DvaHrasta"]
[Result "1-0"]
[WhiteElo "2591"]
[BlackElo "2468"]
[TimeControl "180+1"]
[EndTime "9:48:26 PDT"]
[Termination "WilsonPalencia21 won on time"]

1. d4 {[%clk 0:03:00.9]} 1... Nf6 {[%clk 0:02:58.4]} 2. c4 {[%clk 0:02:57.2]}
2... e6 {[%clk 0:02:58.5]} 3. Nf3 {[%clk 0:02:57.3]} 3... Bb4+ {[%clk 0:02:58]}
4. Nbd2 {[%clk 0:02:53.2]} 4... O-O {[%clk 0:02:56.5]} 5. a3 {[%clk 0:02:52.9]}
5... Bxd2+ {[%clk 0:02:56.3]} 6. Qxd2 {[%clk 0:02:52.4]} 6... d5 {[%clk
0:02:55]} 7. e3 {[%clk 0:02:51.6]} 7... b6 {[%clk 0:02:54]} 8. b3 {[%clk
0:02:51]} 8... Nbd7 {[%clk 0:02:50.7]} 9. Bb2 {[%clk 0:02:49.8]} 9... Bb7 {[%clk
0:02:49.5]} 10. Bd3 {[%clk 0:02:48.5]} 10... dxc4 {[%clk 0:02:48.5]} 11. bxc4
{[%clk 0:02:48.5]} 11... Bxf3 {[%clk 0:02:48]} 12. gxf3 {[%clk 0:02:48.4]} 12...
c5 {[%clk 0:02:48]} 13. O-O-O {[%clk 0:02:24.1]} 13... cxd4 {[%clk 0:02:46]} 14.
exd4 {[%clk 0:02:24.3]} 14... Rc8 {[%clk 0:02:36.6]} 15. Kb1 {[%clk 0:02:24.1]}
15... Qc7 {[%clk 0:02:35.1]} 16. Rhg1 {[%clk 0:02:19.1]} 16... b5 {[%clk
0:02:08.6]} 17. d5 {[%clk 0:01:59.2]} 17... e5 {[%clk 0:01:53.5]} 18. cxb5
{[%clk 0:01:47.7]} 18... Nxd5 {[%clk 0:01:33.7]} 19. Bf5 {[%clk 0:00:57.1]}
19... N7b6 {[%clk 0:01:13.2]} 20. Rxg7+ {[%clk 0:00:45.1]} 20... Kxg7 {[%clk
0:01:06.3]} 21. Qg5+ {[%clk 0:00:31.7]} 21... Kh8 {[%clk 0:01:05.4]} 22. Bxc8
{[%clk 0:00:28.4]} 22... Qxc8 {[%clk 0:00:53.1]} 23. Rg1 {[%clk 0:00:13]} 1-0

[Event "Early-Titled-Tuesday-Blitz-April-16-2024"]
[Site "Chess.com"]
[Date "2024.04.16"]
[Round "9"]
[White "yonaltimur"]
[Black "AlessiaSanteramo"]
[Result "0-1"]
[WhiteElo "2419"]
[BlackElo "2342"]
[TimeControl "180+1"]
[EndTime "9:48:27 PDT"]
[Termination "AlessiaSanteramo won by resignation"]

1. e4 {[%clk 0:02:54.6]} 1... e5 {[%clk 0:02:53.6]} 2. Nf3 {[%clk 0:02:53.3]}
2... Nc6 {[%clk 0:02:49.5]} 3. Bb5 {[%clk 0:02:52.9]} 3... Bc5 {[%clk
0:02:48.3]} 4. O-O {[%clk 0:02:52.3]} 4... Nd4 {[%clk 0:02:48.4]} 5. Nxd4 {[%clk
0:02:50.3]} 5... Bxd4 {[%clk 0:02:49.3]} 6. c3 {[%clk 0:02:50.2]} 6... Bb6
{[%clk 0:02:49.2]} 7. d4 {[%clk 0:02:44.2]} 7... c6 {[%clk 0:02:44.5]} 8. Ba4
{[%clk 0:02:39.4]} 8... d6 {[%clk 0:02:43]} 9. d5 {[%clk 0:02:33.7]} 9... Bd7
{[%clk 0:02:41.6]} 10. dxc6 {[%clk 0:02:33.2]} 10... Bxc6 {[%clk 0:02:38.5]} 11.
Nd2 {[%clk 0:02:30.7]} 11... Nf6 {[%clk 0:02:36.3]} 12. Kh1 {[%clk 0:02:14.9]}
12... O-O {[%clk 0:02:34.9]} 13. f3 {[%clk 0:02:15]} 13... d5 {[%clk 0:02:32]}
14. exd5 {[%clk 0:02:07.8]} 14... Bxd5 {[%clk 0:02:26.5]} 15. Qe2 {[%clk
0:02:02.5]} 15... Qc7 {[%clk 0:02:14.3]} 16. Ne4 {[%clk 0:01:57.6]} 16... Nxe4
{[%clk 0:02:07.9]} 17. fxe4 {[%clk 0:01:58.5]} 17... Bc4 {[%clk 0:02:08.4]} 18.
Qf3 {[%clk 0:01:35.2]} 18... Bxf1 {[%clk 0:02:08.5]} 19. Qxf1 {[%clk 0:01:36.1]}
19... Rad8 {[%clk 0:02:02]} 20. Bb3 {[%clk 0:01:35.9]} 20... Kh8 {[%clk
0:01:58.4]} 21. Bg5 {[%clk 0:01:24.3]} 21... f6 {[%clk 0:01:58.2]} 22. Bh4
{[%clk 0:01:24.4]} 22... Rd6 {[%clk 0:01:55.6]} 23. Bd5 {[%clk 0:01:19.1]} 23...
f5 {[%clk 0:01:51]} 24. Qf3 {[%clk 0:00:37.8]} 24... Qc8 {[%clk 0:01:28]} 25.
Be7 {[%clk 0:00:34.1]} 25... Rxd5 {[%clk 0:01:16.7]} 26. Bxf8 {[%clk 0:00:23.6]}
26... Rd2 {[%clk 0:00:58.2]} 27. Ba3 {[%clk 0:00:17.7]} 27... f4 {[%clk
0:00:53.4]} 28. Rd1 {[%clk 0:00:16.8]} 28... Qd7 {[%clk 0:00:51.7]} 29. Rxd2
{[%clk 0:00:09.6]} 29... Qxd2 {[%clk 0:00:52.6]} 30. g3 {[%clk 0:00:09.1]} 30...
h6 {[%clk 0:00:33.7]} 31. h3 {[%clk 0:00:01.4]} 31... Qe1+ {[%clk 0:00:29.9]}
0-1

[Event "Early-Titled-Tuesday-Blitz-April-16-2024"]
[Site "Chess.com"]
[Date "2024.04.16"]
[Round "9"]
[White "NovoselovRoman"]
[Black "Harry_Rakkel"]
[Result "1-0"]
[WhiteElo "2607"]
[BlackElo "2719"]
[TimeControl "180+1"]
[EndTime "9:48:30 PDT"]
[Termination "NovoselovRoman won by checkmate"]

1. e4 {[%clk 0:02:57]} 1... c6 {[%clk 0:02:59.4]} 2. d4 {[%clk 0:02:57.1]} 2...
d5 {[%clk 0:02:59.2]} 3. Nd2 {[%clk 0:02:56.1]} 3... dxe4 {[%clk 0:02:57.4]} 4.
Nxe4 {[%clk 0:02:57]} 4... Nd7 {[%clk 0:02:55.5]} 5. Nf3 {[%clk 0:02:51.1]} 5...
Ngf6 {[%clk 0:02:54.9]} 6. Bd3 {[%clk 0:02:51.2]} 6... Nxe4 {[%clk 0:02:53.3]}
7. Bxe4 {[%clk 0:02:52.1]} 7... Nf6 {[%clk 0:02:52.6]} 8. Bd3 {[%clk 0:02:52.7]}
8... Bg4 {[%clk 0:02:51.8]} 9. c3 {[%clk 0:02:52.9]} 9... e6 {[%clk 0:02:50.8]}
10. O-O {[%clk 0:02:52.6]} 10... Bd6 {[%clk 0:02:46.3]} 11. h3 {[%clk
0:02:50.4]} 11... Bh5 {[%clk 0:02:45.4]} 12. Be2 {[%clk 0:02:50.3]} 12... O-O
{[%clk 0:02:41.6]} 13. b3 {[%clk 0:02:46.5]} 13... Qc7 {[%clk 0:02:37.9]} 14.
Bb2 {[%clk 0:02:46.1]} 14... c5 {[%clk 0:02:34.2]} 15. dxc5 {[%clk 0:02:38.9]}
15... Bxc5 {[%clk 0:02:30.2]} 16. Nd4 {[%clk 0:02:36.5]} 16... Bxe2 {[%clk
0:02:15.2]} 17. Nxe2 {[%clk 0:02:37.4]} 17... Rfd8 {[%clk 0:02:04]} 18. Qc2
{[%clk 0:02:36.7]} 18... Qb6 {[%clk 0:01:57.9]} 19. c4 {[%clk 0:02:28.5]} 19...
a5 {[%clk 0:01:53.1]} 20. Nc3 {[%clk 0:02:24.6]} 20... Qc6 {[%clk 0:01:46.3]}
21. Rad1 {[%clk 0:02:17]} 21... h5 {[%clk 0:01:40.2]} 22. Na4 {[%clk 0:02:09.4]}
22... Be7 {[%clk 0:01:35.2]} 23. Qe2 {[%clk 0:02:03.5]} 23... h4 {[%clk
0:01:29.8]} 24. Bd4 {[%clk 0:01:51.3]} 24... Nd7 {[%clk 0:01:06.7]} 25. Qg4
{[%clk 0:01:48.9]} 25... g6 {[%clk 0:00:56.6]} 26. Bb2 {[%clk 0:01:32.2]} 26...
e5 {[%clk 0:00:38.7]} 27. Nc3 {[%clk 0:01:29.3]} 27... f5 {[%clk 0:00:35.3]} 28.
Nd5 {[%clk 0:01:20.1]} 28... fxg4 {[%clk 0:00:14.8]} 29. Nxe7+ {[%clk
0:01:19.3]} 29... Kf7 {[%clk 0:00:15.4]} 30. Nxc6 {[%clk 0:01:20]} 30... bxc6
{[%clk 0:00:16.3]} 31. hxg4 {[%clk 0:01:20.7]} 31... e4 {[%clk 0:00:12.5]} 32.
Rd6 {[%clk 0:01:20]} 32... Nc5 {[%clk 0:00:09.6]} 33. Rxc6 {[%clk 0:01:19.1]}
33... Nd3 {[%clk 0:00:09.1]} 34. Bc3 {[%clk 0:01:18]} 34... g5 {[%clk
0:00:09.1]} 35. Rf6+ {[%clk 0:01:15.1]} 35... Ke7 {[%clk 0:00:08.7]} 36. Rf5
{[%clk 0:01:15.4]} 36... Rg8 {[%clk 0:00:08.5]} 37. Bf6+ {[%clk 0:01:15.3]}
37... Ke6 {[%clk 0:00:08.4]} 38. Bxg5 {[%clk 0:01:12.5]} 38... Rg6 {[%clk
0:00:07.4]} 39. f3 {[%clk 0:01:11.8]} 39... Rag8 {[%clk 0:00:06.2]} 40. Bd2
{[%clk 0:01:08.5]} 40... Ne5 {[%clk 0:00:03.7]} 41. Bc3 {[%clk 0:01:05.6]} 41...
Nxg4 {[%clk 0:00:02.8]} 42. fxg4 {[%clk 0:01:05.5]} 42... Rxg4 {[%clk
0:00:03.7]} 43. Re5+ {[%clk 0:01:05]} 43... Kd7 {[%clk 0:00:03.6]} 44. Rf7+
{[%clk 0:01:04.3]} 44... Kc6 {[%clk 0:00:03.9]} 45. Re6+ {[%clk 0:01:02]} 45...
Kc5 {[%clk 0:00:03.4]} 46. Rc7# {[%clk 0:01:02.6]} 1-0

[Event "Early-Titled-Tuesday-Blitz-April-16-2024"]
[Site "Chess.com"]
[Date "2024.04.16"]
[Round "9"]
[White "Kirill_Klukin"]
[Black "Rud_Makarian"]
[Result "0-1"]
[WhiteElo "2825"]
[BlackElo "3015"]
[TimeControl "180+1"]
[EndTime "9:48:35 PDT"]
[Termination "Rud_Makarian won on time"]

1. Nf3 {[%clk 0:03:00.9]} 1... Nf6 {[%clk 0:02:37.9]} 2. e3 {[%clk 0:03:00.3]}
2... d5 {[%clk 0:02:37.8]} 3. c4 {[%clk 0:03:00.3]} 3... e6 {[%clk 0:02:37.3]}
4. b3 {[%clk 0:03:00.7]} 4... b6 {[%clk 0:02:33.2]} 5. Bb2 {[%clk 0:03:01]} 5...
Bb7 {[%clk 0:02:33.5]} 6. Nc3 {[%clk 0:03:01.3]} 6... Nbd7 {[%clk 0:02:33.2]} 7.
Qc2 {[%clk 0:02:57.3]} 7... a6 {[%clk 0:02:31.4]} 8. cxd5 {[%clk 0:02:54.4]}
8... exd5 {[%clk 0:02:32.3]} 9. d4 {[%clk 0:02:55]} 9... Bd6 {[%clk 0:02:31.8]}
10. g3 {[%clk 0:02:55.2]} 10... Qe7 {[%clk 0:02:31.6]} 11. Bg2 {[%clk
0:02:55.5]} 11... O-O-O {[%clk 0:02:29.5]} 12. O-O-O {[%clk 0:02:45.1]} 12...
Kb8 {[%clk 0:02:26.3]} 13. Kb1 {[%clk 0:02:43.8]} 13... Ne4 {[%clk 0:02:25.4]}
14. Nxe4 {[%clk 0:02:41.1]} 14... dxe4 {[%clk 0:02:25.6]} 15. Nd2 {[%clk
0:02:41.8]} 15... f5 {[%clk 0:02:20.7]} 16. Nc4 {[%clk 0:02:42.1]} 16... Bd5
{[%clk 0:02:19.2]} 17. Rc1 {[%clk 0:02:38.9]} 17... Rc8 {[%clk 0:02:19]} 18. Bf1
{[%clk 0:02:32.9]} 18... Kb7 {[%clk 0:02:14.4]} 19. Qe2 {[%clk 0:02:11.1]} 19...
Ra8 {[%clk 0:02:10]} 20. h4 {[%clk 0:02:04.9]} 20... h5 {[%clk 0:02:07.7]} 21.
Qd1 {[%clk 0:01:53.1]} 21... g6 {[%clk 0:02:04.9]} 22. Nxd6+ {[%clk 0:01:44.4]}
22... cxd6 {[%clk 0:01:59.7]} 23. Bc4 {[%clk 0:01:35.9]} 23... Nf6 {[%clk
0:01:59.7]} 24. Qe2 {[%clk 0:01:26.6]} 24... Qd7 {[%clk 0:01:48.7]} 25. Bxd5+
{[%clk 0:00:46.6]} 25... Nxd5 {[%clk 0:01:49.6]} 26. Qc4 {[%clk 0:00:47.1]}
26... Qb5 {[%clk 0:01:48.8]} 27. Ba3 {[%clk 0:00:38.5]} 27... Rhd8 {[%clk
0:01:35.6]} 28. Rc2 {[%clk 0:00:38]} 28... Rac8 {[%clk 0:01:30.7]} 29. Qxb5
{[%clk 0:00:25.8]} 29... axb5 {[%clk 0:01:31.6]} 30. Rxc8 {[%clk 0:00:26.1]}
30... Kxc8 {[%clk 0:01:32.5]} 31. Rc1+ {[%clk 0:00:25.4]} 31... Kd7 {[%clk
0:01:33]} 32. Rc2 {[%clk 0:00:23.5]} 32... Rg8 {[%clk 0:01:26]} 33. Bc1 {[%clk
0:00:16.5]} 33... Nb4 {[%clk 0:01:23.7]} 34. Re2 {[%clk 0:00:05.1]} 34... Nd3
{[%clk 0:01:24.1]} 35. Bd2 {[%clk 0:00:04]} 35... Ke6 {[%clk 0:01:16.7]} 36. Bc3
{[%clk 0:00:02.3]} 36... g5 {[%clk 0:01:11.5]} 37. hxg5 {[%clk 0:00:02.5]} 37...
Rxg5 {[%clk 0:01:12.4]} 38. Kc2 {[%clk 0:00:03]} 38... Rg4 {[%clk 0:01:09.8]}
39. Be1 {[%clk 0:00:02.6]} 39... h4 {[%clk 0:00:53]} 40. gxh4 {[%clk 0:00:02.6]}
40... Rxh4 {[%clk 0:00:53.9]} 41. Kd2 {[%clk 0:00:03.2]} 41... Rh1 {[%clk
0:00:50.2]} 42. f3 {[%clk 0:00:01.7]} 42... exf3 {[%clk 0:00:49.5]} 0-1

[Event "Early-Titled-Tuesday-Blitz-April-16-2024"]
[Site "Chess.com"]
[Date "2024.04.16"]
[Round "9"]
[White "GatoRojo150"]
[Black "Eliwood44"]
[Result "1-0"]
[WhiteElo "2604"]
[BlackElo "2481"]
[TimeControl "180+1"]
[EndTime "9:48:36 PDT"]
[Termination "GatoRojo150 won by checkmate"]

1. e4 {[%clk 0:03:00.9]} 1... e5 {[%clk 0:02:59.5]} 2. Nf3 {[%clk 0:03:00.8]}
2... Nc6 {[%clk 0:02:58.4]} 3. Nc3 {[%clk 0:03:01]} 3... Nf6 {[%clk 0:02:56.3]}
4. Bb5 {[%clk 0:03:01.6]} 4... Nd4 {[%clk 0:02:53.7]} 5. Bc4 {[%clk 0:03:01.3]}
5... Bc5 {[%clk 0:02:52.8]} 6. d3 {[%clk 0:03:01.4]} 6... c6 {[%clk 0:02:50.5]}
7. Nxe5 {[%clk 0:02:47.6]} 7... d5 {[%clk 0:02:50.4]} 8. exd5 {[%clk 0:02:38.7]}
8... O-O {[%clk 0:02:50.2]} 9. O-O {[%clk 0:02:35.3]} 9... cxd5 {[%clk 0:02:46]}
10. Bb3 {[%clk 0:02:33.8]} 10... Re8 {[%clk 0:02:40.1]} 11. Bf4 {[%clk
0:02:33.1]} 11... g5 {[%clk 0:02:30.6]} 12. Bg3 {[%clk 0:02:10.7]} 12... h5
{[%clk 0:02:30.3]} 13. Nxd5 {[%clk 0:02:01.4]} 13... h4 {[%clk 0:02:20.8]} 14.
Nxf6+ {[%clk 0:01:02.8]} 14... Qxf6 {[%clk 0:02:19.3]} 15. Bxf7+ {[%clk
0:00:59.7]} 15... Kg7 {[%clk 0:02:13.6]} 16. Bxe8 {[%clk 0:00:59.4]} 16... hxg3
{[%clk 0:02:12.9]} 17. fxg3 {[%clk 0:00:44.9]} 17... Bf5 {[%clk 0:01:56.8]} 18.
Nd7 {[%clk 0:00:35.2]} 18... Ne2+ {[%clk 0:00:52.4]} 19. Kh1 {[%clk 0:00:34.6]}
19... Nxg3+ {[%clk 0:00:52.7]} 20. hxg3 {[%clk 0:00:33.7]} 20... Qh6+ {[%clk
0:00:52.9]} 21. Qh5 {[%clk 0:00:28.6]} 21... Qxh5+ {[%clk 0:00:37.5]} 22. Bxh5
{[%clk 0:00:29.5]} 22... Bxd7 {[%clk 0:00:37.6]} 23. Rf7+ {[%clk 0:00:27.7]}
23... Kh6 {[%clk 0:00:37.8]} 24. Rxd7 {[%clk 0:00:25.2]} 24... Kxh5 {[%clk
0:00:38.3]} 25. Rh7+ {[%clk 0:00:17]} 25... Kg6 {[%clk 0:00:36.8]} 26. Rh3
{[%clk 0:00:15.9]} 26... Re8 {[%clk 0:00:34.1]} 27. c3 {[%clk 0:00:14.6]} 27...
Bf2 {[%clk 0:00:33.2]} 28. Rf1 {[%clk 0:00:13.6]} 28... Re2 {[%clk 0:00:33.2]}
29. g4 {[%clk 0:00:11.8]} 29... Rxb2 {[%clk 0:00:31.2]} 30. Rf3 {[%clk
0:00:11.7]} 30... Bb6 {[%clk 0:00:29.7]} 31. Rf6+ {[%clk 0:00:11.7]} 31... Kg7
{[%clk 0:00:30.2]} 32. Rf7+ {[%clk 0:00:12]} 32... Kg8 {[%clk 0:00:30.8]} 33.
Rxb7 {[%clk 0:00:11.4]} 33... Rxa2 {[%clk 0:00:30.1]} 34. d4 {[%clk 0:00:11.1]}
34... Rc2 {[%clk 0:00:30.1]} 35. Rf5 {[%clk 0:00:10.8]} 35... Rxc3 {[%clk
0:00:29.9]} 36. Rxg5+ {[%clk 0:00:11.4]} 36... Kf8 {[%clk 0:00:30.4]} 37. Rd5
{[%clk 0:00:11.8]} 37... Rg3 {[%clk 0:00:30]} 38. Rdd7 {[%clk 0:00:11.5]} 38...
Rxg4 {[%clk 0:00:29.8]} 39. Rb8+ {[%clk 0:00:11.3]} 39... Bd8 {[%clk 0:00:28.9]}
40. Rbxd8# {[%clk 0:00:11.4]} 1-0

[Event "Early-Titled-Tuesday-Blitz-April-16-2024"]
[Site "Chess.com"]
[Date "2024.04.16"]
[Round "9"]
[White "FREDERICKtheMATE"]
[Black "vangulio"]
[Result "1-0"]
[WhiteElo "2699"]
[BlackElo "2578"]
[TimeControl "180+1"]
[EndTime "9:48:37 PDT"]
[Termination "FREDERICKtheMATE won by resignation"]

1. d4 {[%clk 0:03:00.9]} 1... Nf6 {[%clk 0:02:58.4]} 2. c4 {[%clk 0:03:01.3]}
2... g6 {[%clk 0:02:57.7]} 3. Nc3 {[%clk 0:03:00.4]} 3... d5 {[%clk 0:02:57.4]}
4. Nf3 {[%clk 0:03:00.2]} 4... Bg7 {[%clk 0:02:57.2]} 5. Qb3 {[%clk 0:02:59.7]}
5... dxc4 {[%clk 0:02:56.8]} 6. Qxc4 {[%clk 0:03:00.4]} 6... Be6 {[%clk
0:02:57.6]} 7. Qb5+ {[%clk 0:02:59.8]} 7... Bd7 {[%clk 0:02:57.9]} 8. Qxb7
{[%clk 0:02:59.8]} 8... Nc6 {[%clk 0:02:57]} 9. Qb3 {[%clk 0:02:56.3]} 9... Rb8
{[%clk 0:02:55]} 10. Qd1 {[%clk 0:02:55.6]} 10... Bf5 {[%clk 0:02:50]} 11. a3
{[%clk 0:02:50.5]} 11... Ne4 {[%clk 0:02:36.1]} 12. e3 {[%clk 0:02:49]} 12... e5
{[%clk 0:02:24.5]} 13. Bb5 {[%clk 0:02:36.3]} 13... Qd6 {[%clk 0:02:21.1]} 14.
Qa4 {[%clk 0:02:32.2]} 14... Rb6 {[%clk 0:02:09.6]} 15. d5 {[%clk 0:02:25.4]}
15... Nxc3 {[%clk 0:02:06.3]} 16. Bxc6+ {[%clk 0:02:25.3]} 16... Rxc6 {[%clk
0:01:59.8]} 17. Qxc6+ {[%clk 0:02:24.3]} 17... Qxc6 {[%clk 0:01:58.4]} 18. dxc6
{[%clk 0:02:25.2]} 18... Nb5 {[%clk 0:01:44.4]} 19. Ke2 {[%clk 0:02:13.1]} 19...
Be6 {[%clk 0:01:34.8]} 20. Rd1 {[%clk 0:02:09.3]} 20... O-O {[%clk 0:01:30.1]}
21. a4 {[%clk 0:01:54.6]} 21... Nd6 {[%clk 0:01:28.5]} 22. Ra3 {[%clk
0:01:53.9]} 22... Rb8 {[%clk 0:01:21.2]} 23. Nd2 {[%clk 0:01:49.5]} 23... Bf8
{[%clk 0:01:18.6]} 24. Rc3 {[%clk 0:01:45.2]} 24... e4 {[%clk 0:01:07.4]} 25. b3
{[%clk 0:01:42.7]} 25... Bg7 {[%clk 0:01:07.1]} 26. Rc2 {[%clk 0:01:42.6]} 26...
Be5 {[%clk 0:01:00.6]} 27. Ba3 {[%clk 0:01:39.3]} 27... f5 {[%clk 0:00:47.4]}
28. b4 {[%clk 0:01:23.9]} 28... a6 {[%clk 0:00:45.2]} 29. Rb1 {[%clk 0:01:13.5]}
29... Kf7 {[%clk 0:00:44]} 30. Rc5 {[%clk 0:01:12.4]} 30... Bf6 {[%clk
0:00:39.1]} 31. b5 {[%clk 0:01:06.9]} 31... axb5 {[%clk 0:00:40]} 32. axb5
{[%clk 0:01:06.2]} 32... Nc8 {[%clk 0:00:40.4]} 33. Rc2 {[%clk 0:01:03.9]} 33...
Ra8 {[%clk 0:00:37.9]} 34. Bc5 {[%clk 0:01:02.4]} 34... Be7 {[%clk 0:00:37.2]}
35. Bd4 {[%clk 0:00:58.3]} 35... Bd6 {[%clk 0:00:32.8]} 36. Nc4 {[%clk
0:00:53.9]} 36... Bxc4+ {[%clk 0:00:28.7]} 37. Rxc4 {[%clk 0:00:54.8]} 37...
Ra2+ {[%clk 0:00:28.7]} 38. Rb2 {[%clk 0:00:54.1]} 38... Ra5 {[%clk 0:00:19.3]}
39. g3 {[%clk 0:00:48]} 39... Ke6 {[%clk 0:00:19.5]} 40. Rcc2 {[%clk 0:00:45.1]}
40... Kd5 {[%clk 0:00:19.3]} 41. b6 {[%clk 0:00:44.4]} 41... cxb6 {[%clk
0:00:19.3]} 42. Bxb6 {[%clk 0:00:44.4]} 42... Ra6 {[%clk 0:00:19.5]} 43. Bd4
{[%clk 0:00:43.2]} 43... Rxc6 {[%clk 0:00:19]} 44. Rb5+ {[%clk 0:00:41.7]} 1-0

[Event "Early-Titled-Tuesday-Blitz-April-16-2024"]
[Site "Chess.com"]
[Date "2024.04.16"]
[Round "9"]
[White "GothamChess"]
[Black "Attacker_2006"]
[Result "1-0"]
[WhiteElo "2672"]
[BlackElo "2459"]
[TimeControl "180+1"]
[EndTime "9:48:39 PDT"]
[Termination "GothamChess won on time"]

1. e4 {[%clk 0:03:00.9]} 1... c5 {[%clk 0:02:26.4]} 2. Nc3 {[%clk 0:02:59]} 2...
Nc6 {[%clk 0:02:09.9]} 3. Bb5 {[%clk 0:02:58.7]} 3... Nd4 {[%clk 0:02:09.6]} 4.
Nf3 {[%clk 0:02:58.8]} 4... e6 {[%clk 0:02:07.4]} 5. O-O {[%clk 0:02:58.6]} 5...
a6 {[%clk 0:02:02.7]} 6. Bd3 {[%clk 0:02:58]} 6... Nc6 {[%clk 0:02:02]} 7. Re1
{[%clk 0:02:58.1]} 7... g5 {[%clk 0:02:00.6]} 8. g3 {[%clk 0:02:54.1]} 8... Bg7
{[%clk 0:01:49.3]} 9. Nd5 {[%clk 0:02:42.3]} 9... g4 {[%clk 0:01:40.1]} 10. Nh4
{[%clk 0:02:41.6]} 10... exd5 {[%clk 0:01:40.5]} 11. exd5+ {[%clk 0:02:41.4]}
11... Ne5 {[%clk 0:01:40.5]} 12. Qxg4 {[%clk 0:02:26.4]} 12... Kf8 {[%clk
0:01:25.7]} 13. Rxe5 {[%clk 0:02:02.8]} 13... Bxe5 {[%clk 0:01:26.6]} 14. d6
{[%clk 0:02:02.7]} 14... Bxd6 {[%clk 0:01:20]} 15. Bc4 {[%clk 0:01:53]} 15...
Be5 {[%clk 0:01:12.4]} 16. Bxf7 {[%clk 0:01:42.5]} 16... d6 {[%clk 0:01:03.9]}
17. Qc4 {[%clk 0:01:38]} 17... b5 {[%clk 0:00:52.6]} 18. Qd5 {[%clk 0:01:30.6]}
18... Ra7 {[%clk 0:00:50.8]} 19. Bxg8 {[%clk 0:01:23.2]} 19... Rxg8 {[%clk
0:00:51.7]} 20. d4 {[%clk 0:01:23.9]} 20... Bxd4 {[%clk 0:00:45.4]} 21. Bh6+
{[%clk 0:01:23.4]} 21... Bg7 {[%clk 0:00:45.2]} 22. Bg5 {[%clk 0:01:05.7]} 22...
Qd7 {[%clk 0:00:30.1]} 23. Re1 {[%clk 0:01:01.6]} 23... Bb7 {[%clk 0:00:21.3]}
24. Be7+ {[%clk 0:00:54.5]} 24... Qxe7 {[%clk 0:00:17.7]} 25. Qxg8+ {[%clk
0:00:53]} 25... Kxg8 {[%clk 0:00:17.5]} 26. Rxe7 {[%clk 0:00:53.9]} 26... Bf6
{[%clk 0:00:14.1]} 27. Rc7 {[%clk 0:00:51.5]} 27... Bd8 {[%clk 0:00:12.7]} 28.
Rd7 {[%clk 0:00:49.4]} 28... Bxh4 {[%clk 0:00:11.6]} 29. gxh4 {[%clk 0:00:50.3]}
29... Kf8 {[%clk 0:00:10.3]} 30. h5 {[%clk 0:00:47.9]} 30... h6 {[%clk 0:00:09]}
31. f4 {[%clk 0:00:39.1]} 31... Ke8 {[%clk 0:00:09.2]} 32. Rh7 {[%clk
0:00:39.9]} 32... Kd8 {[%clk 0:00:07.6]} 33. f5 {[%clk 0:00:38.8]} 33... Kc8
{[%clk 0:00:03]} 34. f6 {[%clk 0:00:39.2]} 34... Ra8 {[%clk 0:00:01.6]} 35. f7
{[%clk 0:00:32.2]} 1-0

[Event "Early-Titled-Tuesday-Blitz-April-16-2024"]
[Site "Chess.com"]
[Date "2024.04.16"]
[Round "9"]
[White "Der_Balak_3Halak"]
[Black "RandomNoob04"]
[Result "0-1"]
[WhiteElo "2454"]
[BlackElo "2671"]
[TimeControl "180+1"]
[EndTime "9:48:40 PDT"]
[Termination "RandomNoob04 won by resignation"]

1. e4 {[%clk 0:02:55]} 1... d5 {[%clk 0:03:00.5]} 2. exd5 {[%clk 0:02:52.1]}
2... Qxd5 {[%clk 0:03:01.4]} 3. Nc3 {[%clk 0:02:52.5]} 3... Qa5 {[%clk
0:03:02.1]} 4. d4 {[%clk 0:02:53]} 4... Nf6 {[%clk 0:03:02.4]} 5. Bc4 {[%clk
0:02:53.4]} 5... Bg4 {[%clk 0:02:59.2]} 6. Nf3 {[%clk 0:02:51.8]} 6... Nc6
{[%clk 0:02:58]} 7. Be3 {[%clk 0:02:48]} 7... O-O-O {[%clk 0:02:46.1]} 8. O-O
{[%clk 0:02:34.8]} 8... e5 {[%clk 0:02:37.5]} 9. d5 {[%clk 0:01:56.6]} 9... e4
{[%clk 0:02:22]} 10. h3 {[%clk 0:01:52.7]} 10... Bh5 {[%clk 0:02:10.7]} 11. dxc6
{[%clk 0:01:24]} 11... Rxd1 {[%clk 0:02:04]} 12. Rfxd1 {[%clk 0:01:23.2]} 12...
exf3 {[%clk 0:01:41.1]} 13. Nb5 {[%clk 0:01:21.5]} 13... bxc6 {[%clk 0:01:35.1]}
14. Nxa7+ {[%clk 0:01:20.5]} 14... Kb7 {[%clk 0:01:35.7]} 15. b4 {[%clk
0:01:15.5]} 15... Qf5 {[%clk 0:01:27.9]} 16. b5 {[%clk 0:01:05.8]} 16... cxb5
{[%clk 0:01:08.4]} 17. Rab1 {[%clk 0:01:03.5]} 17... c6 {[%clk 0:01:02.3]} 18.
Nxb5 {[%clk 0:00:49.6]} 18... cxb5 {[%clk 0:01:02.2]} 19. Rxb5+ {[%clk
0:00:50.5]} 19... Qxb5 {[%clk 0:01:02.6]} 20. Bxb5 {[%clk 0:00:51.4]} 20... fxg2
{[%clk 0:01:03.2]} 21. Rd8 {[%clk 0:00:49.1]} 21... Rg8 {[%clk 0:01:00.8]} 22.
Bd4 {[%clk 0:00:35.9]} 22... Bf3 {[%clk 0:00:48]} 23. Be5 {[%clk 0:00:27.7]}
23... Be7 {[%clk 0:00:34.1]} 24. Rd3 {[%clk 0:00:27]} 24... Bc6 {[%clk
0:00:31.8]} 25. Bc4 {[%clk 0:00:23]} 25... Rd8 {[%clk 0:00:19.7]} 26. Rb3+
{[%clk 0:00:17.9]} 26... Ka8 {[%clk 0:00:17.6]} 27. Bd3 {[%clk 0:00:18.8]} 27...
Ne4 {[%clk 0:00:12.6]} 28. Bxg7 {[%clk 0:00:14.9]} 28... Nxf2 {[%clk 0:00:10.1]}
29. Rc3 {[%clk 0:00:10.1]} 29... Nxh3+ {[%clk 0:00:09.5]} 0-1